[Event "45th FIDE Olympiad 2024"]
[Site "Budapest"]
[Date "2024.09.11"]
[Round "1.48"]
[White "Anas, Khwaira"]
[Black "Mamedyarov, Shakhriyar"]
[Result "1/2-1/2"]
[ECO "E24"]
[WhiteElo "1994"]
[BlackElo "2733"]
[Annotator "TA"]
[PlyCount "98"]
[EventDate "2024.09.05"]
[EventType "team-tourn"]
[EventCountry "HUN"]
[SourceTitle "playchess.com"]
[Source "ChessBase"]
[SourceQuality "1"]
[WhiteTeam "Jordan"]
[BlackTeam "Azerbaijan"]
[WhiteTeamCountry "JOR"]
[BlackTeamCountry "AZE"]
[TimeControl "40/5400+30:1800+30"]

{[%evp 9,98,0,6,0,2,9,6,0,20,24,22,0,16,0,0,0,0,-6,71,39,44,10,10,5,26,8,18,25,69,0,22,25,30,42,31,10,64,67,120,108,278,235,364,369,445,302,285,282,281,290,293,259,284,245,241,266,264,252,242,255,289,225,196,200,267,224,252,177,172,108,256,225,227,0,281,271,332,319,310,253,223,218,209,204,339,205,205,176,183,182,182]} 1. d4 {[%emt 0:00:04]} Nf6 {[%emt 0:00:32]} 2. c4 {[%emt 0:00:09]} e6 {[%emt 0:00:12]} 3. Nc3 {[%emt 0:00:11]} Bb4 {[%emt 0:00:26]} 4. a3 {[%emt 0:00:33]} Bxc3+ {[%emt 0:00:22]} 5. bxc3 {[%emt 0:00:14]} Nc6 {[%emt 0:00:24]} 6. f3 {[%emt 0:00:59]} d5 {[%emt 0:00:51]} 7. cxd5 {[%emt 0:02:21]} exd5 {[%emt 0:00:04]} 8. e3 {[%emt 0:01:19] The position is equal.} Bf5 {[%emt 0:00:08]} 9. Ne2 {[%emt 0:09:43]} h5 {[%emt 0:03:20]} 10. Ng3 {[%emt 0:05:38]} Bg6 {[%emt 0:01:14]} 11. Bd3 {[%emt 0:03:48]} h4 {[%emt 0:00:10] ...Bxd3 would now be deadly.} 12. Ne2 {[%emt 0:02:20]} Bxd3 {[%emt 0:07:17]} 13. Qxd3 {[%emt 0:00:18]} O-O {[%emt 0:00:05] [#]} (13... Na5 $11) 14. O-O $1 $16 {[%emt 0:08:55]} Re8 {[%emt 0:00:18]} 15. Ra2 {[%emt 0:04:45]} Na5 {[%emt 0:01:34]} 16. Nf4 {[%emt 0:01:50]} c5 {[%emt 0:00:39]} 17. Re2 {[%emt 0:04:35]} Nb3 {[%emt 0:09:25]} 18. Bb2 {[%emt 0:05:22][%cal Bc1b2,Bb2c3,Bc3b4][%mdl 32]} Qd6 {[%emt 0:06:07]} 19. Rfe1 {[%emt 0:14:31]} ({White should try} 19. Qf5 $1 $14) 19... cxd4 {[%emt 0:10:25]} 20. cxd4 {[%emt 0:01:10]} Na5 {[%emt 0:00:03]} 21. Bc3 {[%emt 0:06:05]} Nc4 {[%emt 0:01:33]} 22. Bb4 {[%emt 0:01:07]} Qc6 {[%emt 0:06:46]} (22... Qd7 $11) 23. e4 $14 {[%emt 0:09:26]} dxe4 {[%emt 0:00:52]} ({Black should play} 23... a5 $1 $14 24. Bc5 b6 25. exd5 Qb5) 24. fxe4 $16 {[%emt 0:00:15]} Rad8 {[%emt 0:10:03] [#] Repels Nd5} (24... a5 $16 {was worth a try.} 25. Bc3 Nxa3) 25. Nd5 $1 $18 {[%emt 0:03:15] Ne7+ is the strong threat.} Nh5 {[%emt 0:07:46]} ({Not} 25... Nxd5 $2 26. exd5 Qc8 27. Rxe8+ Rxe8 28. Rxe8+ Qxe8 29. Qxc4 $18) (25... Rd7 $142 26. Nxf6+ gxf6) 26. Rc2 {[%emt 0:03:08]} ({Inferior is} 26. Ne7+ Rxe7 27. Bxe7 Nf4 $11) 26... Rc8 {[%emt 0:03:43]} 27. Ne7+ {[%emt 0:02:03]} Rxe7 {[%emt 0:00:10]} 28. Bxe7 {[%emt 0:00:01][%cal Oe1f1] aiming for Rf1!} Nf4 {[%emt 0:00:06]} 29. Qf1 {[%emt 0:01:52]} Ng6 {[%emt 0:00:29]} 30. Bb4 {[%emt 0:02:38]} b5 {[%emt 0:00:14]} 31. Rf2 {[%emt 0:00:36]} Qd7 {[%emt 0:04:28]} 32. Bc5 {[%emt 0:01:50]} a6 {[%emt 0:00:09]} 33. Qe2 {[%emt 0:00:41]} h3 {[%emt 0:02:36]} 34. g3 {[%emt 0:01:00]} Qe6 {[%emt 0:01:44]} 35. Qh5 {[%emt 0:01:07]} Nce5 {[%emt 0:00:06]} 36. Ref1 {[%emt 0:01:04]} Rc7 {[%emt 0:01:51]} 37. Qf5 {[%emt 0:02:50] Strongly threatening Qxe6.} Ng4 {[%emt 0:03:27]} 38. Qxe6 {[%emt 0:00:42]} fxe6 {[%emt 0:00:01]} 39. Re2 {[%emt 0:01:00]} (39. Rf3 $18) 39... Rc8 {[%emt 0:00:46]} (39... e5 $16 40. Rd2 Kh7) 40. Bb4 {[%emt 0:00:29]} Rd8 {[%emt 0:03:47]} 41. Bc5 {[%emt 0:06:26]} Rc8 {[%emt 0:00:18]} 42. Rc1 {[%emt 0:07:44]} Nf6 {[%emt 0:00:51]} 43. Kf2 {[%emt 0:03:38]} Rc7 {[%emt 0:02:22]} 44. Ke1 {[%emt 0:02:06]} Nh8 {[%emt 0:02:12]} 45. Kd2 {[%emt 0:02:16]} Nf7 {[%emt 0:00:21]} 46. Kd3 {[%emt 0:01:56]} Rd7 {[%emt 0:01:13]} (46... Kh7 $142 47. d5 Ne5+ 48. Kd4 Nf3+ 49. Ke3 Ng5) 47. Kc3 {[%emt 0:02:21] Hoping for Kb4.} Ng5 {[%emt 0:03:56] White is clearly better.} 48. Rce1 {[%emt 0:02:28]} Rc7 {[%emt 0:06:52]} 49. Kb4 {[%emt 0:01:33]} Nf3 {[%emt 0:03:52] Weighted Error Value: White=0.28 (precise) /Black=0.31.  Loses game:     	---       	Black=1      Mistake:       	White=2     	Black=6      Inaccurate:     	White=3     	Black=2      OK:         	White=18    	Black=14     Best:        	White=2     	Black=3      Strong:       	White=2     	---} 1/2-1/2

[Event "45th FIDE Olympiad 2024"]
[Site "Budapest"]
[Date "2024.09.11"]
[Round "1.48"]
[White "Solomon, Jonathan"]
[Black "Pastor Carvajal, Jeigoth"]
[Result "0-1"]
[ECO "A47"]
[WhiteElo "1536"]
[BlackElo "2120"]
[Annotator "NA"]
[PlyCount "92"]
[EventDate "2024.09.05"]
[EventType "team-tourn"]
[EventCountry "HUN"]
[SourceTitle "playchess.com"]
[Source "ChessBase"]
[SourceQuality "1"]
[WhiteTeam "Antigua and Barbuda"]
[BlackTeam "Costa Rica"]
[BlackTeamCountry "CRI"]
[TimeControl "40/5400+30:1800+30"]

1. d4 Nf6 2. Bf4 b6 3. e3 Bb7 4. Nd2 g6 5. Ngf3 Bg7 6. Bd3 O-O 7. O-O d6 8. Re1 Nbd7 9. c3 Re8 10. e4 e5 11. Bg3 Qe7 12. Qc2 Rad8 13. Rad1 a6 14. a4 h6 15. h3 Nh5 16. Bh2 Qf6 17. b4 Nf4 18. Bxf4 Qxf4 19. b5 a5 20. g3 Qf6 21. Kg2 Qe7 22. d5 Nc5 23. Bc4 Bc8 24. Nh4 Rf8 25. Ndf3 Kh7 26. Nd2 Qd7 27. Rh1 f5 28. f3 f4 29. Nf1 Bf6 30. Kf2 Bxh4 31. gxh4 Qe7 32. Kg2 Qxh4 33. Be2 Rf7 34. Ra1 Rdf8 35. Bd1 h5 36. Be2 Kg7 37. Bd1 Kf6 38. Be2 Ke7 39. Bd1 Rg7 40. Be2 Qf6 41. Bd1 g5 42. Be2 g4 43. h4 gxf3+ 44. Kxf3 Bg4+ 45. Kf2 Bxe2 46. Qxe2 Rg2+ 0-1

[Event "45th FIDE Olympiad 2024"]
[Site "Budapest"]
[Date "2024.09.11"]
[Round "1.49"]
[White "Smith, Shreyas"]
[Black "Anton Guijarro, David"]
[Result "0-1"]
[ECO "B30"]
[WhiteElo "2226"]
[BlackElo "2665"]
[Annotator "TA"]
[PlyCount "104"]
[EventDate "2024.09.05"]
[EventType "team-tourn"]
[EventCountry "HUN"]
[SourceTitle "playchess.com"]
[Source "ChessBase"]
[SourceQuality "1"]
[WhiteTeam "Jamaica"]
[BlackTeam "Spain"]
[WhiteTeamCountry "JAM"]
[BlackTeamCountry "ESP"]
[TimeControl "40/5400+30:1800+30"]

{[%evp 10,104,16,0,0,0,0,0,0,2,18,-33,-37,-52,-32,-81,-7,-67,-26,-28,-32,-35,-25,-87,-41,-133,-151,-170,-131,-243,-266,-364,-354,-333,-124,-206,-204,-214,-231,-240,-247,-239,-221,-220,-127,-119,-135,-161,0,-19,-26,-160,-173,-175,-156,-211,-209,-238,-236,-352,-351,-364,-251,-371,-376,-362,-178,-184,-184,-214,-135,-143,-142,-135,-125,-235,-181,-323,-335,-354,-362,-521,-519,-624,-643,-675,-543,-816,-566,-716,-708,-846,-927,-924,-870,-29979,-29979]} 1. e4 {[%emt 0:00:04]} c5 {[%emt 0:00:13]} 2. Nf3 {[%emt 0:00:14]} Nc6 {[%emt 0:00:13]} 3. Bb5 {[%emt 0:01:53]} e6 {[%emt 0:00:40]} 4. Bxc6 {[%emt 0:00:13]} bxc6 {[%emt 0:00:06]} 5. d3 {[%emt 0:00:12]} Ne7 {[%emt 0:02:03]} 6. Nh4 {[%emt 0:03:40]} Ng6 {[%emt 0:03:23]} 7. Nxg6 {[%emt 0:03:43]} hxg6 {[%emt 0:00:06]} 8. Qe2 {[%emt 0:04:20]} d5 {[%emt 0:23:50] The position is equal.} 9. b3 {[%emt 0:06:19]} a5 {[%emt 0:05:41]} 10. c4 {[%emt 0:11:59]} (10. a4 $11) 10... a4 $15 {[%emt 0:04:24]} 11. Bb2 {[%emt 0:02:07]} d4 {[%emt 0:05:44]} 12. Nd2 {[%emt 0:16:27]} (12. e5 $15 {was preferrable.}) 12... Qa5 {[%emt 0:11:30]} (12... Qg5 $17 13. Kf1 e5) 13. Rd1 {[%emt 0:07:27]} (13. e5 $11) 13... g5 {[%emt 0:02:46] Black is more active.} 14. e5 {[%emt 0:01:45]} f5 {[%emt 0:05:33]} 15. exf6 {[%emt 0:05:38]} gxf6 {[%emt 0:00:05]} 16. Qf3 {[%emt 0:09:12]} (16. h3 $11 {remains equal.}) 16... Kf7 {[%emt 0:01:56]} (16... f5 $17 17. Qg3 Be7) 17. Qxc6 {[%emt 0:02:49]} (17. g3 $15) 17... Rb8 $17 {[%emt 0:01:10]} 18. O-O {[%emt 0:00:55]} Qd8 {[%emt 0:08:43][%mdl 1024] Black has strong compensation.} 19. Qf3 {[%emt 0:06:09]} (19. Rfe1 $17) 19... Bb7 $19 {[%emt 0:04:10]} 20. Qe2 {[%emt 0:00:11]} Bd6 {[%emt 0:02:09]} 21. h3 {[%emt 0:00:32]} Bc7 $2 {[%emt 0:03:12] This pair of bishops is nice.} (21... g4 $19 22. f3 (22. bxa4 $2 {is the wrong capture.} gxh3 23. f3 hxg2 $19) (22. Qxg4 $2 {too greedy.} f5 $19) 22... gxh3) 22. Rde1 {[%emt 0:02:10]} (22. Ne4 $17) 22... Qd6 {[%emt 0:01:44]} 23. f4 {[%emt 0:00:06]} gxf4 {[%emt 0:00:36]} 24. Ne4 {[%emt 0:00:06]} Bxe4 {[%emt 0:01:08]} 25. Qxe4 {[%emt 0:00:28]} axb3 {[%emt 0:05:12]} 26. axb3 {[%emt 0:00:25]} Rxb3 $40 {[%emt 0:01:42][%mdl 128] Black has strong attack.} (26... f5 $19 27. Qe2 Rxb3) 27. Bc1 $17 {[%emt 0:00:04]} e5 {[%emt 0:00:06]} 28. Re2 {[%emt 0:01:30]} Rb6 {[%emt 0:03:36]} (28... Qd7 $1 $19 {...f5 is the strong threat.} 29. Ra2 f5) 29. Ra2 $11 {[%emt 0:01:01]} Bb8 {[%emt 0:00:44] Black wants to play ...Qc6.} 30. Ra5 {[%emt 0:01:03] [#]} (30. Rb2 $1 $11) 30... Qc6 $1 $17 {[%emt 0:00:22]} 31. Qf5 {[%emt 0:00:46]} Rg8 {[%emt 0:00:08][%csl Gg8][%cal Rc6g2]} 32. Qh5+ {[%emt 0:02:05] [#]} (32. Ra2 $17) 32... Rg6 $1 $19 {[%emt 0:00:20][%csl Gg6][%cal Rc6g2]} 33. Ra2 {[%emt 0:00:16]} Kg7 {[%emt 0:00:41] Prevents Qh7+.} 34. Re2 {[%emt 0:02:31]} (34. Raf2 $142) 34... Rg5 {[%emt 0:01:37]} 35. Qh4 {[%emt 0:00:18]} Qd7 {[%emt 0:00:28]} 36. Rfe1 {[%emt 0:04:49]} (36. Rf3 $142) 36... Qf5 {[%emt 0:00:44]} 37. g4 {[%emt 0:01:11]} Qh7 {[%emt 0:00:54] Repels Bxf4} (37... Qxd3 $142 38. Bxf4 Rg6 (38... exf4 39. Re7+ Kg8 40. Re8+ Kf7 41. R1e7+ Kg6 42. Qh7#)) 38. Qxh7+ {[%emt 0:02:47]} Kxh7 {[%emt 0:00:04]} 39. Kg2 {[%emt 0:01:01]} Rb3 {[%emt 0:01:38]} 40. Rb2 {[%emt 0:00:32]} Rxb2+ {[%emt 0:00:07]} 41. Bxb2 $17 {[%emt 0:30:07][%mdl 4096] Endgame. KRB-KRB} Rg7 {[%emt 0:30:33]} 42. Ba3 {[%emt 0:01:02]} (42. Kf3 $17) 42... Bd6 $19 {[%emt 0:00:31] aiming for ...Ra7.} 43. Rb1 {[%emt 0:00:31]} (43. Kf3 {was necessary.}) 43... Ra7 {[%emt 0:00:49]} 44. Rb3 {[%emt 0:00:00]} Kg6 {[%emt 0:00:00]} 45. Kf3 {[%emt 0:00:00]} (45. h4 $142) 45... Kg5 {[%emt 0:00:00]} 46. Bb2 {[%emt 0:00:00]} Rh7 {[%emt 0:00:00]} 47. Kg2 {[%emt 0:00:00]} f5 {[%emt 0:00:00]} 48. gxf5 {[%emt 0:00:00]} Kxf5 {[%emt 0:00:00]} 49. Rb6 {[%emt 0:00:00]} Be7 {[%emt 0:00:00] Threatens to win with ...Rg7+.} 50. Rb7 {[%emt 0:00:00]} e4 {[%emt 0:00:00]} 51. dxe4+ {[%emt 0:00:00]} Kxe4 {[%emt 0:00:00]} 52. Ba3 {[%emt 0:00:00]} d3 {[%emt 0:00:00] Weighted Error Value: White=0.54/Black=0.32.  Missed win:     	---       	Black=1      Mistake:       	White=14    	Black=5      Inaccurate:     	White=1     	Black=3      OK:         	White=8     	Black=21     Best:        	White=7     	Black=2      Strong:       	---       	Black=1} 0-1

[Event "45th FIDE Olympiad 2024"]
[Site "Budapest"]
[Date "2024.09.11"]
[Round "1.49"]
[White "Celis, Joel"]
[Black "Middelburg, Tom"]
[Result "1/2-1/2"]
[ECO "B13"]
[WhiteElo "1929"]
[BlackElo "2355"]
[Annotator "ChessBase"]
[PlyCount "86"]
[EventDate "2024.09.05"]
[EventType "team-tourn"]
[EventCountry "HUN"]
[SourceTitle "playchess.com"]
[Source "ChessBase"]
[SourceQuality "1"]
[WhiteTeam "Macau"]
[BlackTeam "New Zealand"]
[WhiteTeamCountry "MAC"]
[BlackTeamCountry "NZL"]
[TimeControl "40/5400+30:1800+30"]

1. e4 c6 2. d4 d5 3. exd5 cxd5 4. Nf3 Nc6 5. c3 Nf6 6. Bd3 g6 7. O-O Bg7 8. Re1 O-O 9. h3 Bf5 10. Bxf5 gxf5 11. Bg5 Ne4 12. Qc1 f6 13. Bh6 e6 14. Na3 Rc8 15. Nc2 b5 16. Bxg7 Kxg7 17. Qf4 Ne7 18. a4 bxa4 19. Rxa4 Qb6 20. Rb4 Qc7 21. Qxc7 Rxc7 22. Ra1 Nc6 23. Rb3 Rb8 24. Rxb8 Nxb8 25. Nb4 Rb7 26. Ne1 Kf7 27. Ned3 Re7 28. f3 Nd6 29. Kf2 Nc4 30. b3 Nd6 31. Ra5 Rc7 32. Nc5 Nc8 33. Ke3 Nc6 34. Nxc6 Rxc6 35. b4 Ke7 36. Kd3 Kd6 37. b5 Rb6 38. c4 dxc4+ 39. Kxc4 Ke7 40. Na6 Nd6+ 41. Kb4 Nb7 42. Ra2 Nd6 43. Ra5 Ke8 1/2-1/2

[Event "45th FIDE Olympiad 2024"]
[Site "Budapest"]
[Date "2024.09.11"]
[Round "1.50"]
[White "Vallejo Pons, Francisco"]
[Black "Glaves, Raheem"]
[Result "1-0"]
[ECO "A42"]
[WhiteElo "2657"]
[BlackElo "2094"]
[Annotator "RC"]
[PlyCount "81"]
[EventDate "2024.09.05"]
[EventType "team-tourn"]
[EventCountry "HUN"]
[SourceTitle "playchess.com"]
[Source "ChessBase"]
[SourceQuality "1"]
[WhiteTeam "Spain"]
[BlackTeam "Jamaica"]
[WhiteTeamCountry "ESP"]
[BlackTeamCountry "JAM"]
[TimeControl "40/5400+30:1800+30"]

1. e4 {[%emt 0:00:05]} d6 {[%emt 0:03:46]} 2. d4 {[%emt 0:00:19]} Nd7 {[%emt 0:01:41]} 3. c4 {[%emt 0:06:22]} g6 {[%emt 0:03:46]} 4. Nc3 {[%emt 0:00:35]} Bg7 {[%emt 0:00:18]} 5. Bg5 {[%emt 0:01:41]} h6 {[%emt 0:00:30]} 6. Be3 {[%emt 0:00:14]} e6 {[%emt 0:07:37]} 7. Bd3 {[%emt 0:01:46]} Ne7 {[%emt 0:00:15]} 8. Nge2 {[%emt 0:01:00]} Nc6 {[%emt 0:08:27]} 9. Bc2 {[%emt 0:06:58]} Nb6 {[%emt 0:00:47]} 10. b3 {[%emt 0:00:31]} Bd7 {[%emt 0:09:52]} 11. Qd2 {[%emt 0:01:06]} a5 {[%emt 0:00:32]} 12. O-O {[%emt 0:02:15]} Nb4 {[%emt 0:00:49]} 13. Bb1 {[%emt 0:05:19]} Nc8 {[%emt 0:11:28]} 14. a3 {[%emt 0:02:20]} Nc6 {[%emt 0:00:12]} 15. Bc2 {[%emt 0:00:46]} N6e7 {[%emt 0:02:58]} 16. Rad1 {[%emt 0:02:01]} a4 {[%emt 0:04:02]} 17. b4 {[%emt 0:03:51]} Nb6 {[%emt 0:00:24]} 18. Bd3 {[%emt 0:02:38]} d5 {[%emt 0:00:42]} 19. exd5 {[%emt 0:02:28]} exd5 {[%emt 0:00:11]} 20. c5 {[%emt 0:00:11]} Nc4 {[%emt 0:01:10]} 21. Bxc4 {[%emt 0:01:13]} dxc4 {[%emt 0:00:03]} 22. d5 {[%emt 0:01:34]} Nf5 {[%emt 0:01:05]} 23. Nd4 {[%emt 0:04:10]} Qh4 {[%emt 0:06:12]} 24. c6 {[%emt 0:05:54]} bxc6 {[%emt 0:02:00]} 25. dxc6 {[%emt 0:01:34]} Be6 {[%emt 0:06:03]} 26. Nxe6 {[%emt 0:05:44]} fxe6 {[%emt 0:00:11]} 27. Qd7+ {[%emt 0:00:26]} Kf8 {[%emt 0:00:11]} 28. Nb5 {[%emt 0:01:27]} Kg8 {[%emt 0:10:10]} 29. Nxc7 {[%emt 0:01:53]} Kh7 {[%emt 0:01:07]} 30. Nxa8 {[%emt 0:01:17]} Rxa8 {[%emt 0:00:28]} 31. c7 {[%emt 0:01:04]} Qe4 {[%emt 0:01:39]} 32. Bc5 {[%emt 0:09:02]} c3 {[%emt 0:02:16]} 33. c8=Q {[%emt 0:05:22]} Rxc8 {[%emt 0:00:50]} 34. Qxc8 {[%emt 0:00:15]} Nh4 {[%emt 0:01:05]} 35. f3 {[%emt 0:00:05]} Qe2 {[%emt 0:01:35]} 36. Bf2 {[%emt 0:00:11]} c2 {[%emt 0:00:40]} 37. Rde1 {[%emt 0:00:47]} Nxf3+ {[%emt 0:02:02]} 38. gxf3 {[%emt 0:00:08]} Qxf3 {[%emt 0:00:04]} 39. Qxc2 {[%emt 0:01:02]} h5 {[%emt 0:01:19]} 40. Re3 {[%emt 0:00:36]} Qf6 {[%emt 0:01:02]} 41. Qe4 {[%emt 0:30:28]} 1-0

[Event "45th FIDE Olympiad 2024"]
[Site "Budapest"]
[Date "2024.09.11"]
[Round "1.50"]
[White "Renjith, Sravan"]
[Black "Mak, Tong Kuan"]
[Result "1-0"]
[ECO "D30"]
[WhiteElo "2325"]
[BlackElo "1902"]
[Annotator "ChessBase"]
[PlyCount "79"]
[EventDate "2024.09.05"]
[EventType "team-tourn"]
[EventCountry "HUN"]
[SourceTitle "playchess.com"]
[Source "ChessBase"]
[SourceQuality "1"]
[WhiteTeam "New Zealand"]
[BlackTeam "Macau"]
[WhiteTeamCountry "NZL"]
[BlackTeamCountry "MAC"]
[TimeControl "40/5400+30:1800+30"]

1. Nf3 Nf6 2. c4 e6 3. b3 d5 4. Bb2 c5 5. g3 Nc6 6. cxd5 exd5 7. Bg2 Be7 8. O-O O-O 9. d4 Ne4 10. dxc5 Nxc5 11. Nc3 Bf6 12. Rc1 Ne4 13. a3 Re8 14. Ba1 Be6 15. b4 Nxc3 16. Bxc3 d4 17. Ba1 Qb6 18. Nd2 a5 19. Ne4 Be5 20. b5 Qxb5 21. Rb1 Qc4 22. Qd2 Qa2 23. Qxa2 Bxa2 24. Rxb7 Ra7 25. Rxa7 Nxa7 26. f4 f5 27. fxe5 fxe4 28. Bxd4 Nc6 29. Bc3 Nxe5 30. Bxe4 a4 31. Rf5 Ng4 32. Bd3 h6 33. Ra5 Bb3 34. Ra7 Nf6 35. Rc7 Bd1 36. Bg6 Rd8 37. e4 Bf3 38. Kf2 Bxe4 39. Bxf6 Bxg6 40. Bxd8 1-0

[Event "45th FIDE Olympiad 2024"]
[Site "Budapest"]
[Date "2024.09.11"]
[Round "1.51"]
[White "Shaw, Jaden"]
[Black "Pichot, Alan"]
[Result "0-1"]
[ECO "B52"]
[WhiteElo "2051"]
[BlackElo "2628"]
[Annotator "TA"]
[PlyCount "80"]
[EventDate "2024.09.05"]
[EventType "team-tourn"]
[EventCountry "HUN"]
[SourceTitle "playchess.com"]
[Source "ChessBase"]
[SourceQuality "1"]
[WhiteTeam "Jamaica"]
[BlackTeam "Spain"]
[WhiteTeamCountry "JAM"]
[BlackTeamCountry "ESP"]
[TimeControl "40/5400+30:1800+30"]

{[%evp 9,80,14,29,0,0,0,3,-20,40,37,57,46,39,0,0,-9,0,0,0,0,0,0,0,-35,-18,-41,-28,-95,-87,-98,-92,-147,-143,-138,-156,-146,-146,-145,-160,-139,-141,-133,-122,-186,-189,-193,-189,-295,-268,-283,-288,-384,-377,-831,-856,-841,-837,-1218,-1064,-29967,-29962,-29987,-29987,-29987,-29988,-29989,-29990,-29990,-29991,-29991,-29992,-29993,-29994]} 1. e4 {[%emt 0:00:12]} c5 {[%emt 0:00:16]} 2. Nf3 {[%emt 0:00:23]} d6 {[%emt 0:00:20]} 3. Bb5+ {[%emt 0:01:20]} Bd7 {[%emt 0:00:25]} 4. Bxd7+ {[%emt 0:01:17]} Nxd7 {[%emt 0:00:14]} 5. O-O {[%emt 0:00:48]} e6 {[%emt 0:00:59]} 6. c4 {[%emt 0:02:32]} Ne5 {[%emt 0:07:11]} 7. d3 {[%emt 0:08:08]} Ne7 {[%emt 0:07:19]} 8. Ne1 {[%emt 0:09:12] The position is equal.} d5 {[%emt 0:07:39]} (8... g6 $11) 9. exd5 $14 {[%emt 0:07:43]} exd5 {[%emt 0:00:17]} 10. Nf3 {[%emt 0:03:49]} N5c6 {[%emt 0:04:58]} 11. cxd5 {[%emt 0:05:18]} Nxd5 {[%emt 0:10:14]} 12. Qb3 {[%emt 0:03:35]} Qd7 {[%emt 0:01:42]} 13. Nc3 {[%emt 0:04:48]} O-O-O {[%emt 0:10:19]} 14. Rd1 {[%emt 0:10:31]} Be7 {[%emt 0:03:58]} 15. d4 {[%emt 0:03:54]} Qe6 {[%emt 0:01:32]} 16. Bg5 {[%emt 0:12:18]} (16. Kf1 {simplifies} Nxc3 17. bxc3 cxd4 18. Nxd4 Nxd4 19. cxd4 Qxb3 20. axb3 a6 21. Bf4) 16... Bxg5 {[%emt 0:07:10]} 17. Nxg5 {[%emt 0:00:03]} Qf5 {[%emt 0:00:23]} 18. Nf3 {[%emt 0:02:40] [#]} (18. dxc5 Nxc3 19. bxc3 Rxd1+ (19... Qxg5 $2 20. Qxf7 Qf6 21. Qc4 $19) 20. Rxd1 Qxg5 $17) (18. Nce4 $1 $11 Nxd4 19. Qc4) 18... Nf4 $1 $17 {[%emt 0:04:20] Strongly threatening ...Qg4. Black continues to play with concentration.} 19. dxc5 {[%emt 0:08:01] [#]} Nxg2 $1 {[%emt 0:06:31] Active counter play!} 20. Nb5 {[%emt 0:05:38]} (20. Rxd8+ Rxd8 21. Nb5 (21. Kxg2 $2 Qg4+ 22. Kf1 Qxf3 $19) 21... Nf4 $19 (21... Qg4 $2 22. Kh1 $16)) ({White should try} 20. Ne2 Nf4 21. Nxf4 Qxf4 22. Rd6) (20. Nd5 Nf4) 20... Nf4 $40 {[%emt 0:01:25][%mdl 128] ( -> ...Qg4+). Black is out for blood.} 21. Kh1 {[%emt 0:02:16] Nd6+ is the strong threat.} Nd3 {[%emt 0:03:28] Dancing on a razor blade.} ({Don't play} 21... Qxc5 22. Rdc1 (22. Qxf7 Qxb5 23. Qxf4 Qxb2 $15) 22... Qd5 (22... Qxf2 23. Rc2 $11) 23. Nxa7+ Kc7 24. Nxc6 bxc6 25. Qe3 $11) 22. Rxd3 {[%emt 0:00:47]} Qxd3 {[%emt 0:00:19]} (22... Rxd3 23. Nd6+ Rxd6 24. cxd6 $11) 23. Nd6+ {[%emt 0:00:55]} Rxd6 $1 {[%emt 0:00:06]} 24. cxd6 {[%emt 0:00:04]} Qxb3 {[%emt 0:06:55]} ({But not} 24... Qxd6 $6 25. Qxf7 Qf8 26. Qxf8+ Rxf8 27. Kg2 $11) 25. axb3 {[%emt 0:00:07][%mdl 4096] Endgame. KRN-KRN} Kd7 {[%emt 0:00:59][%cal Of7f6]} 26. Rd1 {[%emt 0:01:28]} (26. Ng5 $17) 26... f6 $19 {[%emt 0:01:01]} 27. Rd5 {[%emt 0:03:26]} Re8 {[%emt 0:00:36]} 28. b4 {[%emt 0:00:51]} (28. Kg2 {keeps fighting.}) 28... Re2 {[%emt 0:00:32]} (28... Nxb4 29. Rb5 a5 30. Rxb7+ Kxd6 31. Rxg7 $17) 29. b5 {[%emt 0:00:30]} Nd8 {[%emt 0:00:27]} 30. b4 {[%emt 0:02:06]} Rxf2 {[%emt 0:01:36]} 31. Nd4 {[%emt 0:00:41]} (31. Nd2) 31... Rd2 {[%emt 0:00:36]} 32. b6 {[%emt 0:00:38]} axb6 {[%emt 0:00:19]} 33. b5 {[%emt 0:00:24]} Ne6 {[%emt 0:00:23]} 34. Nxe6 {[%emt 0:00:10]} Rxd5 {[%emt 0:00:05] Black mates.} 35. Nxg7 {[%emt 0:00:06]} Rxb5 {[%emt 0:00:10] KR-KN} 36. h4 {[%emt 0:00:05]} Re5 {[%emt 0:00:12]} 37. h5 {[%emt 0:00:09]} b5 {[%emt 0:00:05]} 38. h6 {[%emt 0:00:04]} b4 {[%emt 0:00:04]} 39. Kg2 {[%emt 0:00:05]} b3 {[%emt 0:00:05]} 40. Kf3 {[%emt 0:00:07]} b2 {[%emt 0:00:05] Weighted Error Value: White=0.66/Black=0.04 (flawless) .  Mistake:       	White=5     	Black=1      Inaccurate:     	White=3     	---        OK:         	White=9     	Black=14     Best:        	White=1     	Black=2      Strong:       	---       	Black=2      Brilliant:      	---       	Black=1} 0-1

[Event "45th FIDE Olympiad 2024"]
[Site "Budapest"]
[Date "2024.09.11"]
[Round "1.51"]
[White "Wong, Kai Meng"]
[Black "Croad, Nicolas"]
[Result "0-1"]
[ECO "D30"]
[WhiteElo "1795"]
[BlackElo "2195"]
[Annotator "ChessBase"]
[PlyCount "52"]
[EventDate "2024.09.05"]
[EventType "team-tourn"]
[EventCountry "HUN"]
[SourceTitle "playchess.com"]
[Source "ChessBase"]
[SourceQuality "1"]
[WhiteTeam "Macau"]
[BlackTeam "New Zealand"]
[WhiteTeamCountry "MAC"]
[BlackTeamCountry "NZL"]
[TimeControl "40/5400+30:1800+30"]

1. d4 Nf6 2. Nf3 d5 3. e3 e6 4. c4 Bb4+ 5. Bd2 Be7 6. Nc3 O-O 7. Qc2 b6 8. cxd5 exd5 9. Bd3 Bb7 10. O-O c5 11. b3 Nc6 12. a3 Re8 13. Bb5 Bd6 14. Rfd1 a6 15. Bd3 Rc8 16. dxc5 bxc5 17. Na4 Qe7 18. Nb6 Rcd8 19. a4 Ne5 20. Be2 d4 21. Nxe5 Bxe5 22. Rac1 Ne4 23. Bf1 Bxh2+ 24. Kxh2 Qh4+ 25. Kg1 Qxf2+ 26. Kh2 Rd6 0-1